[Event "TUR-ch U13-18 Open 2023"]
[Site "Antalya"]
[Date "2023.01.28"]
[Round "10"]
[White "Anacak, Hasan Gunes"]
[Black "Caliskan, Seha"]
[Result "1-0"]
[ECO "C01"]
[WhiteElo "1898"]
[BlackElo "1954"]
[Annotator "TA"]
[PlyCount "79"]
[EventDate "2023.01.17"]
[EventType "swiss"]
[EventCountry "TUR"]
[SourceTitle "playchess.com"]
[Source "ChessBase"]
[SourceQuality "1"]
[TimeControl "5400+30"]

{[%evp 10,79,-6,-13,0,0,0,0,0,0,0,0,88,83,119,128,179,179,189,192,184,183,358,350,346,341,351,346,345,345,344,331,386,368,447,440,475,475,435,408,536,518,547,463,592,613,650,643,631,620,741,739,752,739,703,698,774,750,910,913,876,891,851,872,2172,2100,2093,2076,1697,896,1635,1589]} 1. e4 {[%emt 0:06:00]} e6 {[%emt 0:01:00]} 2. d4 {[%emt 0:00:30]} d5 {[%emt 0:00:30]} 3. Bd3 {[%emt 0:00:00][%cal Bf1d3,Bd3e4,Be4f3][%mdl 32]} dxe4 {[%emt 0:00:00]} 4. Bxe4 {[%emt 0:00:00]} Nf6 {[%emt 0:00:00]} 5. Bf3 {[%emt 0:00:00]} c5 {[%emt 0:01:30]} 6. Ne2 {[%emt 0:00:00]} Nc6 {[%emt 0:04:30][%cal Rc5d4] C01: French: Exchange Variation.} 7. Be3 {[%emt 0:05:30]} cxd4 {[%emt 0:08:30]} 8. Nxd4 {[%emt 0:00:30]} Ne5 {[%emt 0:01:30] The position is equal.} 9. Nc3 {[%emt 0:04:30]} a6 {[%emt 0:03:30]} 10. Qe2 {[%emt 0:07:30]} Bb4 {[%emt 0:06:30]} (10... Nxf3+ $11 {remains equal.} 11. Nxf3 b5) 11. O-O-O $1 $40 {[%emt 0:02:30][%mdl 128] White goes for the king.} Qe7 {[%emt 0:05:30] [#]} 12. Bg5 $1 {[%emt 0:30:30]} Nxf3 {[%emt 0:23:30]} (12... Qc5 $16) 13. Qxf3 $18 {[%emt 0:00:00] Nc6 is the strong threat.} (13. Nxf3 Bxc3 14. bxc3 Bd7 $15) 13... Bxc3 {[%emt 0:05:30] [#]} 14. Nc6 {[%emt 0:00:00] Prevents Ba5.} ({Worse is} 14. bxc3 h6 15. Bxf6 Qxf6 $11) (14. Qxc3 Ne4 $11) 14... bxc6 {[%emt 0:00:30]} 15. Qxc6+ {[%emt 0:00:30]} Bd7 $2 {[%emt 0:00:30]} (15... Kf8 16. Qxa8 Bxb2+ {[%mdl 64] Decoy} 17. Kxb2 Qb4+ 18. Kc1 Qa3+ 19. Kd2 (19. Kb1 Qb4+ 20. Kc1 Qa3+ 21. Kd2 Qa5+ 22. Ke2 Qc7 $18) 19... Qa5+ 20. Ke2 Qc7) 16. Qxa8+ {[%emt 0:03:30]} Qd8 {[%emt 0:00:30]} 17. Qxd8+ {[%emt 0:00:30]} ({Not} 17. Qxa6 Qa5 18. Qxa5 Bxa5 $11) 17... Kxd8 {[%emt 0:00:00]} 18. bxc3 {[%emt 0:00:00]} Ke7 {[%emt 0:00:00]} 19. Rd4 {[%emt 0:02:00]} Rc8 {[%emt 0:02:30]} 20. Rhd1 {[%emt 0:03:30]} Bb5 {[%emt 0:00:30]} 21. a4 {[%emt 0:02:30] [#]} Bc6 $146 {[%emt 0:00:30]} ({Predecessor:} 21... Be8 22. Rb4 h6 23. Rb7+ Kf8 24. Bxf6 gxf6 25. Rd4 e5 26. Rd6 Bxa4 27. Rxf6 Be8 28. Ra7 Kg7 29. Raxa6 Rxc3 30. Rf5 Bb5 31. Ra5 Bc6 32. Rfxe5 Bxg2 33. Re3 {1-0 Vavulin,M (2445)-Persson,R (2158) SRB Central-ch op-A 8th 2015 (5)}) 22. Rc4 {[%emt 0:01:30]} h6 {[%emt 0:00:30]} 23. Bxf6+ {[%emt 0:09:30]} gxf6 {[%emt 0:00:30][%mdl 4096] Endgame KRR-KRB} 24. Rc5 {[%emt 0:00:30]} e5 {[%emt 0:00:30]} 25. Rd3 {[%emt 0:00:30] White is clearly winning.} h5 {[%emt 0:00:30]} 26. c4 {[%emt 0:00:30]} Rc7 {[%emt 0:00:30]} 27. g3 {[%emt 0:00:30]} Rc8 {[%emt 0:00:30]} 28. Kb2 {[%emt 0:03:22]} Ke6 {[%emt 0:00:30]} 29. Ka3 {[%emt 0:01:10]} Ke7 {[%emt 0:00:30]} 30. Kb4 {[%emt 0:01:44]} Rb8+ {[%emt 0:00:30]} 31. Ka5 {[%emt 0:00:04]} Be4 {[%emt 0:00:30]} 32. Rc7+ {[%emt 0:00:30]} Ke6 {[%emt 0:00:00]} 33. Rb3 {[%emt 0:00:24]} Rd8 {[%emt 0:00:00]} 34. Rb6+ {[%emt 0:00:10][%mdl 64] Deflection, Double Attack} Kf5 {[%emt 0:00:30]} 35. Rxf7 {[%emt 0:00:00]} Bxc2 {[%emt 0:00:00]} 36. f3 {[%emt 0:00:37]} h4 {[%emt 0:03:00]} 37. Rfxf6+ {[%emt 0:02:37]} Kg5 {[%emt 0:00:30]} 38. gxh4+ {[%emt 0:01:10]} Kxh4 {[%emt 0:00:30]} 39. Rh6+ {[%emt 0:00:30]} Kg5 {[%emt 0:00:30]} 40. Rbf6 {[%emt 0:00:00] White took control after the opening.   Weighted Error Value: White=0.07 (flawless) /Black=0.42} 1-0

[Event "TUR-ch U13-18 Open 2023"]
[Site "Antalya"]
[Date "2023.01.28"]
[Round "10"]
[White "Ergin, Sahin"]
[Black "Ince, Taylan Ruzgar"]
[Result "1/2-1/2"]
[ECO "D03"]
[WhiteElo "1878"]
[BlackElo "2267"]
[Annotator "TA"]
[PlyCount "40"]
[EventDate "2023.01.17"]
[EventType "swiss"]
[EventCountry "TUR"]
[SourceTitle "playchess.com"]
[Source "ChessBase"]
[SourceQuality "1"]
[TimeControl "5400+30"]

{[%evp 12,40,10,4,12,0,16,12,26,11,31,25,23,16,23,0,4,0,0,2,0,0,0,3,-3,-2,0,-6,9,-10,0]} 1. d4 {[%emt 0:06:00]} Nf6 {[%emt 0:01:00]} 2. Nf3 {[%emt 0:00:00]} g6 {[%emt 0:01:30]} 3. Bg5 {[%emt 0:00:00]} Bg7 {[%emt 0:00:30]} 4. Nbd2 {[%emt 0:00:30]} d5 {[%emt 0:00:30]} 5. e3 {[%emt 0:00:30]} O-O {[%emt 0:00:30]} 6. Be2 {[%emt 0:00:00]} c5 {[%emt 0:00:00]} 7. c3 {[%emt 0:00:00]} cxd4 {[%emt 0:00:00] D03: 1 d4 d5 2 Nf3 Nf6 3 Bg5, including Torre Attack with early ...d5.} 8. cxd4 {[%emt 0:00:00]} Qb6 {[%emt 0:07:30]} 9. Qb3 {[%emt 0:01:00]} Qxb3 {[%emt 0:00:30]} 10. Nxb3 {[%emt 0:03:30]} Nc6 {[%emt 0:01:30]} 11. O-O {[%emt 0:12:30]} Ne4 {[%emt 0:06:30]} 12. Bf4 {[%emt 0:01:30]} Bd7 {[%emt 0:03:30] [#]} 13. Rac1 $146 {[%emt 0:04:30]} ({Predecessor:} 13. Rfc1 Rfc8 14. Nc5 Nxc5 15. Rxc5 e6 16. Bd6 f6 17. Rac1 Bf8 18. Bxf8 Kxf8 19. a3 Ke7 20. Bb5 Kd6 21. Bxc6 Rxc6 22. Rxc6+ Bxc6 23. Nd2 Bb5 24. Rc5 {½-½ Laxman,R (2411)-Svidler,P (2714) Titled Tuesday intern op 23rd Mar blitz 2021 (3)}) 13... Rfc8 {[%emt 0:04:30] The position is equal.} 14. a3 {[%emt 0:01:30]} Nd8 {[%emt 0:04:30]} 15. Rxc8 {[%emt 0:08:30]} Rxc8 {[%emt 0:00:30]} 16. Rc1 {[%emt 0:00:30] Against Rc2} Rxc1+ {[%emt 0:03:30]} 17. Nxc1 {[%emt 0:00:00]} f6 {[%emt 0:01:30]} 18. Bc7 {[%emt 0:04:00]} Nc6 {[%emt 0:00:30]} 19. Nb3 {[%emt 0:02:30]} b6 {[%emt 0:08:30]} 20. Bb5 {[%emt 0:05:30]} Kf7 {[%emt 0:08:30] An uneventful encounter.   Weighted Error Value: White=0.04 (flawless) /Black=0.05 (flawless)} 1/2-1/2

[Event "TUR-ch U13-18 Open 2023"]
[Site "Antalya"]
[Date "2023.01.28"]
[Round "10"]
[White "Sozat, Arda"]
[Black "Torun, Kagan"]
[Result "1/2-1/2"]
[ECO "C10"]
[WhiteElo "1877"]
[BlackElo "1442"]
[Annotator "NA RC COMBH"]
[PlyCount "117"]
[EventDate "2023.01.17"]
[EventType "swiss"]
[EventCountry "TUR"]
[SourceTitle "playchess.com"]
[Source "ChessBase"]
[SourceQuality "1"]
[TimeControl "5400+30"]

1. e4 e6 2. d4 d5 3. Nc3 dxe4 4. Nxe4 Nd7 5. Nf3 Ngf6 6. Bg5 Be7 7. Bxf6 Bxf6 8. c3 O-O 9. Bd3 b6 10. Qe2 Bb7 11. Rd1 Qe7 12. O-O c5 13. dxc5 Nxc5 14. Nxc5 Qxc5 15. Be4 Qc7 16. Nd2 Rfd8 17. Bxb7 Qxb7 18. Ne4 Be7 19. f4 Rxd1 20. Rxd1 Qc7 21. g3 Rd8 22. Rxd8+ Qxd8 23. Qd2 Qxd2 24. Nxd2 g5 25. Ne4 h6 26. Kf2 Kg7 27. Kf3 Kg6 28. Nf2 Bd6 29. Nd3 gxf4 30. gxf4 Kf5 31. c4 a5 32. h3 h5 33. Ke3 Bc5+ 34. Kf3 f6 35. a3 a4 36. Nc1 e5 37. fxe5 fxe5 38. b4 axb3 39. Nxb3 e4+ 40. Ke2 Bxa3 41. Nd4+ Ke5 42. Nc6+ Kf4 43. Nd8 Bc5 44. Ne6+ Ke5 45. Nc7 Kd4 46. Nd5 Kxc4 47. Nf6 e3 48. Nxh5 b5 49. Nf4 b4 50. h4 b3 51. Nd3 Bd4 52. h5 Kd5 53. Kf3 Ke6 54. h6 Kf6 55. Ke2 Kg6 56. Kd1 Kxh6 57. Ne1 Bc3 58. Nd3 Kg5 59. Nc5 1/2-1/2

[Event "TUR-ch U13-18 Open 2023"]
[Site "Antalya"]
[Date "2023.01.28"]
[Round "10"]
[White "Dirikolu, Deniz"]
[Black "Arslan, Mustafa Alparslan"]
[Result "1-0"]
[ECO "B75"]
[WhiteElo "1868"]
[BlackElo "1439"]
[Annotator "NA RC COMBH"]
[PlyCount "88"]
[EventDate "2023.01.17"]
[EventType "swiss"]
[EventCountry "TUR"]
[SourceTitle "playchess.com"]
[Source "ChessBase"]
[SourceQuality "1"]
[TimeControl "5400+30"]

1. e4 {[%emt 0:01:00]} c5 {[%emt 0:01:00]} 2. Nf3 {[%emt 0:00:30]} d6 {[%emt 0:00:30]} 3. d4 {[%emt 0:00:30]} cxd4 {[%emt 0:00:30]} 4. Nxd4 {[%emt 0:00:30]} Nf6 {[%emt 0:00:00]} 5. Nc3 {[%emt 0:00:00]} g6 {[%emt 0:00:00]} 6. Be3 {[%emt 0:00:00]} Bg7 {[%emt 0:00:00]} 7. f3 {[%emt 0:00:00]} a6 {[%emt 0:00:00]} 8. Qd2 {[%emt 0:00:00]} h5 {[%emt 0:00:30]} 9. Be2 {[%emt 0:00:00] is now more promising than 9.0-0-0.} Nbd7 {[%emt 0:00:00]} 10. O-O {[%emt 0:00:00]} b5 {[%emt 0:01:00]} 11. a4 {[%emt 0:00:30]} bxa4 {[%emt 0:00:30]} 12. Rxa4 {[%emt 0:00:30]} Bb7 {[%emt 0:09:30]} 13. Nb3 {[%emt 0:02:30] [#]} Nb6 $146 {[%emt 0:03:30]} ({Predecessor:} 13... O-O 14. Na5 Qc7 15. Rfa1 Rfb8 16. Rc4 Qd8 17. Rb4 Qc7 18. Kh1 Bc6 19. Nxc6 Qxc6 {½-½ Garcia Padron,J (2403)-Belezky,A (2370) Lanzarote op 2018 (8)}) 14. Rb4 {[%emt 0:04:30]} Nfd7 {[%emt 0:03:30]} 15. Bxb6 {[%emt 0:03:30]} Nxb6 {[%emt 0:01:30]} 16. Qe3 {[%emt 0:00:00]} Bh6 {[%emt 0:12:30]} 17. Qf2 {[%emt 0:00:00]} (17. Qxb6 $2 {too greedy.} Qxb6+ {[%mdl 64] Remove Defender} 18. Rxb6 Be3+ 19. Kh1 Bxb6 $19) 17... Nd7 {[%emt 0:03:30]} 18. Rxb7 {[%emt 0:00:30]} Qc8 {[%emt 0:00:30]} 19. Rb4 {[%emt 0:00:30]} O-O {[%emt 0:00:30]} 20. Rc4 {[%emt 0:00:30]} Qb7 {[%emt 0:00:30]} 21. Nd5 {[%emt 0:00:30]} Nc5 {[%emt 0:01:30]} 22. Nxc5 {[%emt 0:00:30]} dxc5 {[%emt 0:00:00]} 23. Qxc5 {[%emt 0:00:00]} Qxb2 {[%emt 0:01:00]} 24. Nxe7+ {[%emt 0:00:00]} Kh7 {[%emt 0:00:30]} 25. f4 {[%emt 0:04:30]} a5 {[%emt 0:00:30]} 26. Ra4 {[%emt 0:01:30]} Rad8 {[%emt 0:03:30]} 27. Bd3 {[%emt 0:02:30]} Rfe8 {[%emt 0:11:30]} 28. Nd5 {[%emt 0:00:00]} Rc8 {[%emt 0:03:30]} 29. Qxa5 {[%emt 0:01:00]} Bg7 {[%emt 0:02:30]} 30. Qb4 {[%emt 0:01:30]} Qxb4 {[%emt 0:00:30]} 31. Rxb4 {[%emt 0:00:00]} Rcd8 $18 {[%emt 0:00:30]} 32. Rb7 {[%emt 0:00:00]} Kg8 {[%emt 0:00:30]} 33. f5 {[%emt 0:01:30]} Bd4+ {[%emt 0:00:30]} 34. Kh1 {[%emt 0:00:30]} gxf5 {[%emt 0:00:30]} 35. Rxf5 {[%emt 0:00:00]} Ra8 {[%emt 0:00:00]} 36. Rbxf7 {[%emt 0:00:00]} Ra1+ {[%emt 0:00:00]} 37. Rf1 {[%emt 0:00:30]} Rb8 {[%emt 0:00:30]} 38. Rxa1 {[%emt 0:02:30]} Bxa1 {[%emt 0:00:30]} 39. Rf1 {[%emt 0:00:00]} Be5 {[%emt 0:00:30]} 40. Nf6+ {[%emt 0:00:00]} Kg7 {[%emt 0:00:30]} 41. Nd7 {[%emt 0:00:30]} Re8 {[%emt 0:00:30]} 42. Nxe5 {[%emt 0:00:30]} Rxe5 {[%emt 0:00:30]} 43. Rf5 {[%emt 0:00:30]} Rxf5 {[%emt 0:00:30]} 44. exf5 {[%emt 0:00:30]} Kf6 {[%emt 0:00:00]} 1-0

[Event "TUR-ch U13-18 Open 2023"]
[Site "Antalya"]
[Date "2023.01.28"]
[Round "10"]
[White "Yildirim, Kemal"]
[Black "Ozen, Metehan"]
[Result "0-1"]
[ECO "B90"]
[WhiteElo "1804"]
[BlackElo "2137"]
[Annotator "TA"]
[PlyCount "71"]
[EventDate "2023.01.17"]
[EventType "swiss"]
[EventCountry "TUR"]
[SourceTitle "playchess.com"]
[Source "ChessBase"]
[SourceQuality "1"]
[TimeControl "5400+30"]

{[%evp 9,71,19,26,3,17,33,33,18,33,-69,-62,-56,-77,-52,-37,-45,-42,-47,-37,-37,-23,-87,-66,-100,-85,-98,-95,-106,-83,-117,-119,-132,-122,-163,-158,-131,-159,-123,-131,-128,-53,-41,-31,-99,-90,-103,-104,-120,-127,-157,-157,-279,-291,-746,-737,-663,-321,-1695,-1632,-29988,-29989,-29996,-29997,-29997]} 1. e4 {[%emt 0:04:00]} c5 {[%emt 0:01:00]} 2. Nf3 {[%emt 0:00:30]} d6 {[%emt 0:00:00]} 3. d4 {[%emt 0:00:30]} cxd4 {[%emt 0:00:00]} 4. Nxd4 {[%emt 0:00:30]} Nf6 {[%emt 0:00:00]} 5. Nc3 {[%emt 0:00:00]} a6 {[%emt 0:00:00]} 6. Qd3 {[%emt 0:00:00] B90: Sicilian Najdorf: Unusual White 6th moves, 6 Be3 Ng4 and 6 Be3 e5.} e5 {[%emt 0:02:30][%cal Be7e5,Be5e4][%mdl 32]} 7. Nf5 {[%emt 0:00:30]} Bxf5 {[%emt 0:08:30]} 8. exf5 {[%emt 0:00:30] White is slightly better.} h6 {[%emt 0:05:30] [#]} 9. g3 $146 {[%emt 0:08:30]} (9. Be3 $14) ({Predecessor:} 9. Be3 Nc6 10. O-O-O Nb4 11. Qd2 Rc8 12. Kb1 d5 13. f4 Qa5 14. a3 d4 15. Bxd4 exd4 {1-0 Brodsky,D (2484)-Stearman,J (2375) Saint Louis Congress GM 2022 (1)}) 9... d5 $15 {[%emt 0:02:30]} 10. Bg2 {[%emt 0:03:30][%cal Rc3d5]} e4 $1 {[%emt 0:00:30]} ({But not} 10... Bb4 11. Bd2 $11) 11. Qe2 {[%emt 0:02:30]} Bb4 {[%emt 0:07:30]} 12. O-O {[%emt 0:11:30]} O-O {[%emt 0:01:30]} 13. Rd1 {[%emt 0:03:30][%cal Oc3d5] [#] And now Nxd5! would win.} Bxc3 {[%emt 0:05:30]} 14. bxc3 {[%emt 0:00:30]} Qc8 {[%emt 0:00:30]} 15. Be3 {[%emt 0:19:30]} (15. g4 $11 {remains equal.}) 15... Qxf5 $17 {[%emt 0:03:30]} 16. c4 {[%emt 0:00:30]} dxc4 {[%emt 0:05:30]} 17. Qxc4 {[%emt 0:00:30]} Nc6 {[%emt 0:00:30]} 18. h3 {[%emt 0:09:30]} Ne5 {[%emt 0:05:30]} 19. Qe2 {[%emt 0:02:30]} h5 {[%emt 0:11:30]} 20. Rab1 {[%emt 0:04:30]} b5 {[%emt 0:00:30]} 21. Rb4 {[%emt 0:08:15]} Nf3+ {[%emt 0:04:30]} 22. Kh1 {[%emt 0:00:21]} Rad8 {[%emt 0:02:30]} 23. c4 {[%emt 0:02:16][%cal Rc4b5]} Rxd1+ {[%emt 0:03:30]} 24. Qxd1 {[%emt 0:00:06]} Ne5 {[%emt 0:01:30]} (24... Rc8 $17 25. Qf1 bxc4 26. Rxc4 Rd8 27. Bxf3 Qxf3+ 28. Kh2 Rd1 29. Rc8+ {[%mdl 64] Discovered Attack} Kh7) 25. cxb5 $15 {[%emt 0:01:55]} Nd3 {[%emt 0:00:30]} 26. Rb3 {[%emt 0:02:06]} (26. Rd4 $1 $15) 26... axb5 $17 {[%emt 0:00:30]} ({Reject} 26... Nxf2+ $6 27. Bxf2 Qxf2 28. b6 $11) 27. Kg1 {[%emt 0:00:42][%cal Og2e4]} Rd8 $36 {[%emt 0:05:30][%mdl 2048] White is under strong pressure.} 28. Qb1 {[%emt 0:02:29]} Rd5 {[%emt 0:01:30] Black has more active pieces.} 29. Ra3 {[%emt 0:04:33]} Ne5 {[%emt 0:04:11] Threatens to win with ...Qd7. Excellent horsemanship.} 30. Ra8+ {[%emt 0:01:05]} (30. Rc3 $17) 30... Kh7 $19 {[%emt 0:00:27]} 31. Ra6 $2 {[%emt 0:00:17]} (31. Bf4) 31... Nf3+ {[%emt 0:01:01]} 32. Kh1 {[%emt 0:00:44]} g6 {[%emt 0:02:17]} (32... Ng4 $142 {Hoping for ...Nxe3.} 33. Rc6 (33. hxg4 $2 {too greedy.} hxg4 $19) 33... Nxe3 34. fxe3 g6) 33. Qa1 $2 {[%emt 0:00:29] [#]} (33. Ra7 Ng4 34. hxg4 hxg4 35. Bxf3 {[%mdl 64] Remove Defender} Qxf3+ 36. Kg1) 33... Qd7 $1 {[%emt 0:01:55] ( -> ...Rd1+)} 34. Bd4 {[%emt 0:08:21]} (34. Qf1 Rd1) 34... Rxd4 {[%emt 0:00:30]} 35. Bxf3 {[%emt 0:00:00]} Qxh3+ {[%emt 0:00:19]} 36. Kg1 {[%emt 0:00:00] Weighted Error Value: White=0.76/Black=0.16 (very precise)} 0-1

[Event "TUR-ch U13-18 Open 2023"]
[Site "Antalya"]
[Date "2023.01.28"]
[Round "10"]
[White "Uysal, Ugur"]
[Black "Ozen, Mehmet Safa"]
[Result "1-0"]
[ECO "E69"]
[WhiteElo "1760"]
[BlackElo "1536"]
[Annotator "NA RC COMBH"]
[PlyCount "65"]
[EventDate "2023.01.17"]
[EventType "swiss"]
[EventCountry "TUR"]
[SourceTitle "playchess.com"]
[Source "ChessBase"]
[SourceQuality "1"]
[TimeControl "5400+30"]

1. Nf3 {[%emt 0:01:00]} Nf6 {[%emt 0:01:00]} 2. d4 {[%emt 0:00:30]} g6 {[%emt 0:00:30]} 3. c4 {[%emt 0:00:30]} Bg7 {[%emt 0:00:30]} 4. g3 {[%emt 0:00:00]} O-O {[%emt 0:00:00]} 5. Bg2 {[%emt 0:00:00]} d6 {[%emt 0:00:00]} 6. O-O {[%emt 0:00:00]} c6 {[%emt 0:00:30]} 7. Nc3 {[%emt 0:00:00]} Qa5 {[%emt 0:00:00]} 8. h3 {[%emt 0:00:00]} e5 {[%emt 0:00:00]} 9. e4 {[%emt 0:00:00]} Nbd7 {[%emt 0:00:00]} 10. Re1 {[%emt 0:00:30]} exd4 {[%emt 0:00:00]} 11. Nxd4 {[%emt 0:00:30]} Ne5 {[%emt 0:00:30]} 12. Bf1 {[%emt 0:00:00]} Qb6 {[%emt 0:00:00]} 13. Kg2 {[%emt 0:00:00]} c5 {[%emt 0:06:00]} 14. Ndb5 {[%emt 0:00:00]} Be6 {[%emt 0:08:30]} 15. Qxd6 {[%emt 0:01:00]} Nxc4 {[%emt 0:01:30]} 16. Qxb6 {[%emt 0:00:30]} Nxb6 {[%emt 0:01:30]} 17. Nc7 {[%emt 0:00:00]} Rac8 {[%emt 0:02:30]} 18. Nxe6 {[%emt 0:00:00]} fxe6 {[%emt 0:00:00]} 19. Be3 {[%emt 0:03:30]} Nfd7 {[%emt 0:09:00]} 20. Rad1 {[%emt 0:05:30]} Ne5 {[%emt 0:03:30]} 21. f4 {[%emt 0:01:30]} Nec4 {[%emt 0:01:30]} 22. Bc1 {[%emt 0:00:00]} Na5 {[%emt 0:10:30]} 23. e5 {[%emt 0:18:00]} Nc6 {[%emt 0:04:30]} 24. Be3 {[%emt 0:02:30]} Nb4 {[%emt 0:10:30]} 25. Ne4 {[%emt 0:13:30]} Nc2 {[%emt 0:06:30]} 26. Re2 {[%emt 0:00:00]} Nxe3+ {[%emt 0:00:30]} 27. Rxe3 {[%emt 0:00:00]} Nd5 {[%emt 0:01:30]} 28. Ree1 {[%emt 0:01:30]} Rfd8 {[%emt 0:03:30]} 29. Nd6 {[%emt 0:04:30]} Rc6 {[%emt 0:02:30]} 30. Bc4 {[%emt 0:02:30]} Rcxd6 {[%emt 0:00:00]} 31. exd6 {[%emt 0:00:00]} Rxd6 {[%emt 0:00:00]} 32. Rxe6 {[%emt 0:00:00]} Rxe6 {[%emt 0:01:30]} 33. Bxd5 {[%emt 0:00:00]} 1-0

[Event "TUR-ch U13-18 Open 2023"]
[Site "Antalya"]
[Date "2023.01.28"]
[Round "10"]
[White "Sezis, Doruk"]
[Black "Dolek, Gokalp Deniz"]
[Result "1-0"]
[ECO "D02"]
[WhiteElo "1743"]
[BlackElo "1740"]
[Annotator "NA RC COMBH"]
[PlyCount "77"]
[EventDate "2023.01.17"]
[EventType "swiss"]
[EventCountry "TUR"]
[SourceTitle "playchess.com"]
[Source "ChessBase"]
[SourceQuality "1"]
[TimeControl "5400+30"]

1. d4 {[%emt 0:05:00]} d5 {[%emt 0:01:00]} 2. Nf3 {[%emt 0:04:30]} Nf6 {[%emt 0:00:30]} 3. g3 {[%emt 0:00:30]} c5 {[%emt 0:00:30]} 4. Bg2 {[%emt 0:00:00]} cxd4 {[%emt 0:00:00]} 5. O-O {[%emt 0:00:00]} h6 {[%emt 0:01:00]} 6. b3 {[%emt 0:14:30]} Nc6 {[%emt 0:07:30]} 7. Nxd4 {[%emt 0:00:30]} e5 {[%emt 0:01:30]} 8. Nxc6 {[%emt 0:00:30]} bxc6 {[%emt 0:00:30]} 9. Bb2 {[%emt 0:00:00]} Bd6 {[%emt 0:02:30]} 10. c4 {[%emt 0:00:00]} Bb7 {[%emt 0:00:30]} 11. cxd5 {[%emt 0:02:30]} cxd5 {[%emt 0:00:30]} 12. Nc3 {[%emt 0:00:00]} Qa5 {[%emt 0:04:30]} 13. Qd3 {[%emt 0:06:00]} Rd8 {[%emt 0:05:30]} 14. Qb5+ {[%emt 0:02:30]} Qxb5 {[%emt 0:00:30]} 15. Nxb5 {[%emt 0:00:30]} Bb8 {[%emt 0:00:30]} 16. Rac1 {[%emt 0:03:30]} O-O {[%emt 0:05:30]} 17. Ba3 {[%emt 0:00:30]} Rfe8 {[%emt 0:01:30]} 18. Nc7 {[%emt 0:00:30]} Bxc7 {[%emt 0:04:30]} 19. Rxc7 {[%emt 0:00:30]} Rb8 {[%emt 0:15:30]} 20. Rfc1 {[%emt 0:15:30]} Rec8 {[%emt 0:08:30]} 21. Bb2 {[%emt 0:01:30]} Re8 {[%emt 0:14:30]} 22. e3 {[%emt 0:06:30]} a5 {[%emt 0:05:04]} 23. Bc3 {[%emt 0:02:30]} a4 {[%emt 0:01:02]} 24. bxa4 {[%emt 0:00:30]} Ba6 {[%emt 0:00:42]} 25. f4 {[%emt 0:22:01]} e4 {[%emt 0:04:06]} 26. h3 {[%emt 0:04:34]} Bc4 {[%emt 0:00:26]} 27. Bf1 {[%emt 0:00:13]} Bxf1 {[%emt 0:07:54]} 28. Kxf1 {[%emt 0:00:30]} Rec8 {[%emt 0:00:09]} 29. Bd4 {[%emt 0:02:48]} Rxc7 {[%emt 0:01:06]} 30. Rxc7 {[%emt 0:00:01]} Rb4 {[%emt 0:00:36]} 31. Rc8+ {[%emt 0:00:30]} Kh7 {[%emt 0:00:00]} 32. Ra8 {[%emt 0:01:07]} Rc4 {[%emt 0:00:05]} 33. a5 {[%emt 0:00:00]} Rc1+ {[%emt 0:03:20]} 34. Ke2 {[%emt 0:00:17]} Rc2+ {[%emt 0:00:30]} 35. Kd1 {[%emt 0:00:30]} Rxa2 {[%emt 0:00:00]} 36. a6 {[%emt 0:00:00]} Ne8 {[%emt 0:00:00]} 37. a7 {[%emt 0:00:30]} Nc7 {[%emt 0:00:24]} 38. Rc8 {[%emt 0:00:30]} g5 {[%emt 0:00:00]} 39. Rxc7 {[%emt 0:00:00]} 1-0